[Event "Early-Titled-Tuesday-Blitz-September-12-2023"]
[Site "Chess.com"]
[Date "2023.09.12"]
[Round "10"]
[White "DKmirl"]
[Black "ChainedDowntohell"]
[Result "0-1"]
[WhiteElo "2274"]
[BlackElo "2474"]
[TimeControl "180+1"]
[EndTime "9:56:28 PDT"]
[Termination "ChainedDowntohell won on time"]

1. d4 {[%clk 0:03:00.9]} 1... g6 {[%clk 0:02:56.5]} 2. Nf3 {[%clk 0:02:57.3]}
2... Bg7 {[%clk 0:02:54.4]} 3. g3 {[%clk 0:02:56]} 3... b6 {[%clk 0:02:52.3]} 4.
Bg2 {[%clk 0:02:56.1]} 4... Bb7 {[%clk 0:02:52.1]} 5. O-O {[%clk 0:02:52.8]}
5... Nf6 {[%clk 0:02:51.6]} 6. c4 {[%clk 0:02:50.6]} 6... e6 {[%clk 0:02:49.5]}
7. Nc3 {[%clk 0:02:50.5]} 7... Ne4 {[%clk 0:02:49.1]} 8. Bd2 {[%clk 0:02:50.5]}
8... O-O {[%clk 0:02:42.5]} 9. Rc1 {[%clk 0:02:48.6]} 9... d6 {[%clk 0:02:39.4]}
10. Qc2 {[%clk 0:02:45.6]} 10... Nxd2 {[%clk 0:02:36.9]} 11. Qxd2 {[%clk
0:02:42.8]} 11... Nd7 {[%clk 0:02:34.1]} 12. b4 {[%clk 0:02:39.2]} 12... Qe7
{[%clk 0:02:24.1]} 13. a4 {[%clk 0:02:38.4]} 13... a5 {[%clk 0:02:21.2]} 14. b5
{[%clk 0:02:28.3]} 14... f5 {[%clk 0:02:15.4]} 15. e3 {[%clk 0:02:15.9]} 15...
h6 {[%clk 0:02:14.7]} 16. Nh4 {[%clk 0:01:34.3]} 16... Bxg2 {[%clk 0:02:13.3]}
17. Nxg2 {[%clk 0:01:35.2]} 17... Rae8 {[%clk 0:02:09.2]} 18. Nf4 {[%clk
0:01:25.4]} 18... Qf7 {[%clk 0:01:59.4]} 19. Nd3 {[%clk 0:01:23.6]} 19... Kh7
{[%clk 0:01:51.7]} 20. c5 {[%clk 0:01:05.7]} 20... dxc5 {[%clk 0:01:25.5]} 21.
dxc5 {[%clk 0:01:04.9]} 21... Rd8 {[%clk 0:01:25.3]} 22. Qe2 {[%clk 0:00:45.4]}
22... Nxc5 {[%clk 0:01:12.4]} 23. Nxc5 {[%clk 0:00:44.4]} 23... bxc5 {[%clk
0:01:13.3]} 24. Qc4 {[%clk 0:00:43.9]} 24... Qe7 {[%clk 0:01:05.3]} 25. Ne2
{[%clk 0:00:41.8]} 25... Rd2 {[%clk 0:01:02]} 26. Nf4 {[%clk 0:00:42.1]} 26...
e5 {[%clk 0:00:56.5]} 27. Ne6 {[%clk 0:00:42.2]} 27... Rf7 {[%clk 0:00:49.4]}
28. Nxg7 {[%clk 0:00:37.3]} 28... Kxg7 {[%clk 0:00:49.2]} 29. Qxc5 {[%clk
0:00:36.7]} 29... Qxc5 {[%clk 0:00:49]} 30. Rxc5 {[%clk 0:00:37]} 30... Ra2
{[%clk 0:00:42.7]} 31. Rc4 {[%clk 0:00:30.7]} 31... Rd7 {[%clk 0:00:34.2]} 32.
Rfc1 {[%clk 0:00:29.1]} 32... Rdd2 {[%clk 0:00:33.8]} 33. Rxc7+ {[%clk
0:00:28.5]} 33... Kf6 {[%clk 0:00:33.8]} 34. h4 {[%clk 0:00:21.4]} 34... Ke6
{[%clk 0:00:07.2]} 35. R1c6+ {[%clk 0:00:19.1]} 35... Kd5 {[%clk 0:00:07.4]} 36.
Rd7+ {[%clk 0:00:19]} 36... Ke4 {[%clk 0:00:07.9]} 37. Rc4+ {[%clk 0:00:16.2]}
37... Kf3 {[%clk 0:00:07.3]} 38. Rxd2 {[%clk 0:00:16.1]} 38... Rxd2 {[%clk
0:00:08.2]} 39. Rc1 {[%clk 0:00:13.8]} 39... Rb2 {[%clk 0:00:05.2]} 40. h5
{[%clk 0:00:06.5]} 40... gxh5 {[%clk 0:00:04.2]} 41. Rd1 {[%clk 0:00:04]} 41...
e4 {[%clk 0:00:03.1]} 42. Kf1 {[%clk 0:00:02]} 42... Rxf2+ {[%clk 0:00:02.2]}
43. Ke1 {[%clk 0:00:02.7]} 43... Rg2 {[%clk 0:00:03.1]} 0-1

[Event "Early-Titled-Tuesday-Blitz-September-12-2023"]
[Site "Chess.com"]
[Date "2023.09.12"]
[Round "10"]
[White "HansOnTwitch"]
[Black "MITerryble"]
[Result "1-0"]
[WhiteElo "3054"]
[BlackElo "2943"]
[TimeControl "180+1"]
[EndTime "9:56:30 PDT"]
[Termination "HansOnTwitch won on time"]

1. e4 {[%clk 0:03:00.9]} 1... e6 {[%clk 0:02:59.8]} 2. d4 {[%clk 0:02:59.2]}
2... d5 {[%clk 0:03:00.5]} 3. Nc3 {[%clk 0:02:59.7]} 3... Nf6 {[%clk 0:03:00.6]}
4. e5 {[%clk 0:02:59.9]} 4... Nfd7 {[%clk 0:03:00.8]} 5. f4 {[%clk 0:03:00.6]}
5... c5 {[%clk 0:03:01.4]} 6. Nf3 {[%clk 0:03:01.3]} 6... Nc6 {[%clk 0:03:02.1]}
7. Be3 {[%clk 0:03:01.9]} 7... Be7 {[%clk 0:03:02.8]} 8. Qd2 {[%clk 0:03:02]}
8... O-O {[%clk 0:03:03.3]} 9. Bd3 {[%clk 0:02:46.7]} 9... f6 {[%clk 0:03:02.8]}
10. exf6 {[%clk 0:02:11]} 10... Bxf6 {[%clk 0:03:03.7]} 11. Be2 {[%clk
0:01:54.5]} 11... cxd4 {[%clk 0:03:02.4]} 12. Nxd4 {[%clk 0:01:54.2]} 12... Bxd4
{[%clk 0:03:02.7]} 13. Bxd4 {[%clk 0:01:54.4]} 13... e5 {[%clk 0:03:03.3]} 14.
Bxe5 {[%clk 0:01:35.5]} 14... Ndxe5 {[%clk 0:03:03.3]} 15. fxe5 {[%clk
0:01:34.9]} 15... Be6 {[%clk 0:03:04]} 16. O-O-O {[%clk 0:01:25.9]} 16... d4
{[%clk 0:03:04.3]} 17. Nb5 {[%clk 0:01:23.1]} 17... Qd5 {[%clk 0:02:55.7]} 18.
b3 {[%clk 0:01:14.8]} 18... Qxe5 {[%clk 0:02:49.9]} 19. Rhe1 {[%clk 0:01:13.2]}
19... d3 {[%clk 0:02:48.3]} 20. Qxd3 {[%clk 0:01:06.1]} 20... Qa1+ {[%clk
0:02:34.4]} 21. Kd2 {[%clk 0:01:05.7]} 21... Qxa2 {[%clk 0:02:30.8]} 22. Ra1
{[%clk 0:00:37.5]} 22... Qb2 {[%clk 0:02:30.3]} 23. Qc3 {[%clk 0:00:37.9]} 23...
Rad8+ {[%clk 0:01:59.8]} 24. Bd3 {[%clk 0:00:35.8]} 24... Rf2+ {[%clk
0:01:52.5]} 25. Re2 {[%clk 0:00:30.6]} 25... Rxe2+ {[%clk 0:00:57.3]} 26. Kxe2
{[%clk 0:00:31.5]} 26... Nd4+ {[%clk 0:00:57.3]} 27. Ke3 {[%clk 0:00:26.6]}
27... Qxc3 {[%clk 0:00:50.5]} 28. Nxc3 {[%clk 0:00:27.5]} 28... a6 {[%clk
0:00:44.9]} 29. Ra4 {[%clk 0:00:23.7]} 29... Nf5+ {[%clk 0:00:41.6]} 30. Kd2
{[%clk 0:00:21.9]} 30... Nd4 {[%clk 0:00:27.3]} 31. Ne4 {[%clk 0:00:21.2]} 31...
Nc6 {[%clk 0:00:13.3]} 32. Nc5 {[%clk 0:00:19.5]} 32... Bc8 {[%clk 0:00:13.8]}
33. Kc3 {[%clk 0:00:17.3]} 33... g5 {[%clk 0:00:07.5]} 34. h4 {[%clk 0:00:15.3]}
34... h6 {[%clk 0:00:07.3]} 35. hxg5 {[%clk 0:00:15.2]} 35... hxg5 {[%clk
0:00:08.2]} 36. Ne4 {[%clk 0:00:15.3]} 36... b5 {[%clk 0:00:06.8]} 37. Ra1
{[%clk 0:00:15]} 37... g4 {[%clk 0:00:06.8]} 38. Rf1 {[%clk 0:00:15.2]} 38...
Kg7 {[%clk 0:00:07]} 39. Rf4 {[%clk 0:00:12.2]} 39... Ne7 {[%clk 0:00:06.8]} 40.
Kb2 {[%clk 0:00:11.1]} 40... Nd5 {[%clk 0:00:06.6]} 41. Rf2 {[%clk 0:00:11.8]}
41... Ne3 {[%clk 0:00:06.7]} 42. Re2 {[%clk 0:00:11.5]} 42... Nd5 {[%clk
0:00:05.6]} 43. g3 {[%clk 0:00:11.2]} 43... Re8 {[%clk 0:00:04.9]} 44. Rf2
{[%clk 0:00:10.6]} 44... Rf8 {[%clk 0:00:04.5]} 45. Rh2 {[%clk 0:00:08.3]} 45...
Ne3 {[%clk 0:00:04.7]} 46. Nd6 {[%clk 0:00:07.7]} 46... Be6 {[%clk 0:00:03.8]}
47. Rh7+ {[%clk 0:00:06.8]} 47... Kf6 {[%clk 0:00:04.4]} 48. Ne4+ {[%clk
0:00:06.1]} 48... Ke5 {[%clk 0:00:05]} 49. Nc5 {[%clk 0:00:05.3]} 49... Bd5
{[%clk 0:00:02.5]} 50. Nd7+ {[%clk 0:00:05]} 50... Kd6 {[%clk 0:00:01.8]} 51.
Nxf8 {[%clk 0:00:05.9]} 1-0

[Event "Early-Titled-Tuesday-Blitz-September-12-2023"]
[Site "Chess.com"]
[Date "2023.09.12"]
[Round "10"]
[White "Let_it_be_1"]
[Black "TimofeevAr"]
[Result "0-1"]
[WhiteElo "2657"]
[BlackElo "2830"]
[TimeControl "180+1"]
[EndTime "9:56:32 PDT"]
[Termination "TimofeevAr won on time"]

1. e4 {[%clk 0:03:00.9]} 1... e6 {[%clk 0:02:59.3]} 2. d4 {[%clk 0:03:00.6]}
2... d5 {[%clk 0:02:59.3]} 3. Nd2 {[%clk 0:03:00.6]} 3... dxe4 {[%clk
0:02:57.2]} 4. Nxe4 {[%clk 0:03:00.7]} 4... Nd7 {[%clk 0:02:57.9]} 5. Nf3 {[%clk
0:02:59.5]} 5... Ngf6 {[%clk 0:02:58]} 6. Bd3 {[%clk 0:02:59.5]} 6... Nxe4
{[%clk 0:02:57.5]} 7. Bxe4 {[%clk 0:02:59.6]} 7... Nf6 {[%clk 0:02:58.1]} 8. Bg5
{[%clk 0:02:58.6]} 8... Be7 {[%clk 0:02:48.7]} 9. Bxf6 {[%clk 0:02:55.8]} 9...
gxf6 {[%clk 0:02:48.4]} 10. Qe2 {[%clk 0:02:50.8]} 10... c6 {[%clk 0:02:40.6]}
11. O-O-O {[%clk 0:02:45.5]} 11... Qa5 {[%clk 0:02:39.5]} 12. Kb1 {[%clk
0:02:43.2]} 12... Bd7 {[%clk 0:02:39.2]} 13. c4 {[%clk 0:02:28]} 13... O-O-O
{[%clk 0:02:37.3]} 14. d5 {[%clk 0:02:21.1]} 14... cxd5 {[%clk 0:02:10.3]} 15.
cxd5 {[%clk 0:02:20.3]} 15... f5 {[%clk 0:02:10.6]} 16. Bxf5 {[%clk 0:02:11.9]}
16... Bf6 {[%clk 0:01:57.1]} 17. Be4 {[%clk 0:01:35.9]} 17... Kb8 {[%clk
0:01:55.2]} 18. d6 {[%clk 0:01:27.2]} 18... Qb6 {[%clk 0:01:51.5]} 19. Rd3
{[%clk 0:01:25]} 19... Bb5 {[%clk 0:01:51.1]} 20. Rhd1 {[%clk 0:01:07.3]} 20...
Rd7 {[%clk 0:01:39]} 21. Qc2 {[%clk 0:00:53.4]} 21... Rc8 {[%clk 0:01:36]} 22.
Qb3 {[%clk 0:00:28.6]} 22... Bxd3+ {[%clk 0:01:32.5]} 23. Rxd3 {[%clk
0:00:28.1]} 23... Qxb3 {[%clk 0:01:28.9]} 24. axb3 {[%clk 0:00:29]} 24... Rcd8
{[%clk 0:01:27.3]} 25. Bxh7 {[%clk 0:00:28]} 25... Rxd6 {[%clk 0:01:27.4]} 26.
Re3 {[%clk 0:00:24.4]} 26... Rd1+ {[%clk 0:01:25.7]} 27. Ka2 {[%clk 0:00:24.5]}
27... R8d5 {[%clk 0:01:24.3]} 28. b4 {[%clk 0:00:23.9]} 28... R1d4 {[%clk
0:01:21]} 29. Nxd4 {[%clk 0:00:23.4]} 29... Bxd4 {[%clk 0:01:19.7]} 30. Rd3
{[%clk 0:00:17.6]} 30... Bxf2 {[%clk 0:01:19.5]} 31. Rxd5 {[%clk 0:00:17.1]}
31... exd5 {[%clk 0:01:19.9]} 32. Kb3 {[%clk 0:00:16.9]} 32... f6 {[%clk
0:01:18]} 33. Kc3 {[%clk 0:00:16.8]} 33... Kc7 {[%clk 0:01:17]} 34. Kd3 {[%clk
0:00:16.2]} 34... b5 {[%clk 0:01:12.9]} 35. Bg8 {[%clk 0:00:15.1]} 35... Kd6
{[%clk 0:01:12.7]} 36. b3 {[%clk 0:00:14.9]} 36... Be1 {[%clk 0:01:11.5]} 37.
Bf7 {[%clk 0:00:13.8]} 37... Bxb4 {[%clk 0:01:10.7]} 38. h4 {[%clk 0:00:13.9]}
38... f5 {[%clk 0:01:03.5]} 39. h5 {[%clk 0:00:13.4]} 39... Ba3 {[%clk
0:01:03.8]} 40. h6 {[%clk 0:00:13.2]} 40... Bb2 {[%clk 0:01:03.7]} 41. h7 {[%clk
0:00:13.5]} 41... a5 {[%clk 0:00:58.9]} 42. Be8 {[%clk 0:00:13.6]} 42... b4
{[%clk 0:00:55.1]} 43. Bg6 {[%clk 0:00:12.8]} 43... f4 {[%clk 0:00:54.9]} 44.
Ke2 {[%clk 0:00:12.3]} 44... Bg7 {[%clk 0:00:54.3]} 45. Kf3 {[%clk 0:00:11.9]}
45... Ke5 {[%clk 0:00:54.6]} 46. Bc2 {[%clk 0:00:09.9]} 46... Bh8 {[%clk
0:00:51.4]} 47. Kg4 {[%clk 0:00:08.4]} 47... Kd4 {[%clk 0:00:35.9]} 48. Kxf4
{[%clk 0:00:08.2]} 48... Kc3 {[%clk 0:00:36.3]} 49. Bd1 {[%clk 0:00:08.4]} 49...
d4 {[%clk 0:00:36.8]} 50. g4 {[%clk 0:00:06.8]} 50... d3 {[%clk 0:00:37.2]} 51.
Ke3 {[%clk 0:00:06.1]} 51... Bf6 {[%clk 0:00:29.5]} 52. Ke4 {[%clk 0:00:01.8]}
52... Kd2 {[%clk 0:00:27.5]} 53. Bf3 {[%clk 0:00:01.5]} 53... Kc2 {[%clk
0:00:27.7]} 0-1

[Event "Early-Titled-Tuesday-Blitz-September-12-2023"]
[Site "Chess.com"]
[Date "2023.09.12"]
[Round "10"]
[White "MaxLeto"]
[Black "noblerone"]
[Result "1-0"]
[WhiteElo "2419"]
[BlackElo "2519"]
[TimeControl "180+1"]
[EndTime "9:56:33 PDT"]
[Termination "MaxLeto won by checkmate"]

1. g4 {[%clk 0:02:57.1]} 1... d5 {[%clk 0:02:57]} 2. Bg2 {[%clk 0:02:56.5]} 2...
c5 {[%clk 0:02:56.8]} 3. h3 {[%clk 0:02:45.1]} 3... Nc6 {[%clk 0:02:56.7]} 4. c3
{[%clk 0:02:44.3]} 4... g6 {[%clk 0:02:56.9]} 5. d4 {[%clk 0:02:44.5]} 5... cxd4
{[%clk 0:02:56.8]} 6. cxd4 {[%clk 0:02:45.4]} 6... Bg7 {[%clk 0:02:57.2]} 7. Nf3
{[%clk 0:02:45.8]} 7... Nf6 {[%clk 0:02:54.9]} 8. Nc3 {[%clk 0:02:45.8]} 8... h6
{[%clk 0:02:45]} 9. O-O {[%clk 0:02:43.4]} 9... e6 {[%clk 0:02:44.7]} 10. Bf4
{[%clk 0:02:43.6]} 10... a6 {[%clk 0:02:44.3]} 11. Ne5 {[%clk 0:02:33.1]} 11...
Bd7 {[%clk 0:02:38.1]} 12. Rc1 {[%clk 0:02:26.2]} 12... O-O {[%clk 0:02:36.5]}
13. Qd2 {[%clk 0:02:24]} 13... Kh7 {[%clk 0:02:35.2]} 14. Bg3 {[%clk 0:01:47.4]}
14... Qb6 {[%clk 0:02:13.6]} 15. e3 {[%clk 0:01:41.3]} 15... Rac8 {[%clk
0:01:54]} 16. Na4 {[%clk 0:01:33.4]} 16... Qb4 {[%clk 0:01:42.2]} 17. Qxb4
{[%clk 0:01:24.8]} 17... Nxb4 {[%clk 0:01:43.1]} 18. Nb6 {[%clk 0:01:25.4]}
18... Rxc1 {[%clk 0:01:36.6]} 19. Rxc1 {[%clk 0:01:26.3]} 19... Bb5 {[%clk
0:01:36.4]} 20. a3 {[%clk 0:01:16.4]} 20... Nd3 {[%clk 0:01:30.5]} 21. Nxd3
{[%clk 0:01:13.4]} 21... Bxd3 {[%clk 0:01:31.4]} 22. Rc7 {[%clk 0:01:13.8]}
22... Kg8 {[%clk 0:01:31.7]} 23. Rxb7 {[%clk 0:01:12.2]} 23... Ne4 {[%clk
0:01:21.3]} 24. Bc7 {[%clk 0:01:06.2]} 24... Nd2 {[%clk 0:01:14.8]} 25. b4
{[%clk 0:01:02.6]} 25... Nc4 {[%clk 0:01:12.4]} 26. a4 {[%clk 0:00:48.5]} 26...
Nxb6 {[%clk 0:01:03.6]} 27. Bxb6 {[%clk 0:00:49.4]} 27... Rc8 {[%clk 0:00:58]}
28. Bc5 {[%clk 0:00:49.6]} 28... Ra8 {[%clk 0:00:45.2]} 29. Bf1 {[%clk
0:00:45.8]} 29... Bc4 {[%clk 0:00:35.2]} 30. Bxc4 {[%clk 0:00:43]} 30... dxc4
{[%clk 0:00:36.1]} 31. Kf1 {[%clk 0:00:41.3]} 31... e5 {[%clk 0:00:34.4]} 32. d5
{[%clk 0:00:21.6]} 32... e4 {[%clk 0:00:33.1]} 33. Ke2 {[%clk 0:00:21.4]} 33...
Rd8 {[%clk 0:00:27.5]} 34. d6 {[%clk 0:00:21.2]} 34... Be5 {[%clk 0:00:27.4]}
35. Rb6 {[%clk 0:00:21]} 35... c3 {[%clk 0:00:24.7]} 36. Kd1 {[%clk 0:00:19.8]}
36... a5 {[%clk 0:00:25.1]} 37. bxa5 {[%clk 0:00:18.2]} 37... Rc8 {[%clk
0:00:25.2]} 38. Rb5 {[%clk 0:00:15.6]} 38... c2+ {[%clk 0:00:23.8]} 39. Kc1
{[%clk 0:00:10.3]} 39... f6 {[%clk 0:00:21]} 40. a6 {[%clk 0:00:05.7]} 40... Kf7
{[%clk 0:00:18.2]} 41. Rb7+ {[%clk 0:00:05.3]} 41... Ke6 {[%clk 0:00:17.8]} 42.
d7 {[%clk 0:00:05.4]} 42... Rd8 {[%clk 0:00:17.4]} 43. Kxc2 {[%clk 0:00:04.9]}
43... Bb8 {[%clk 0:00:15.3]} 44. a7 {[%clk 0:00:05]} 44... Bxa7 {[%clk 0:00:15]}
45. Rxa7 {[%clk 0:00:05.9]} 45... Kd5 {[%clk 0:00:14.4]} 46. Bd4 {[%clk
0:00:06.4]} 46... Ke6 {[%clk 0:00:11.8]} 47. a5 {[%clk 0:00:06.7]} 47... f5
{[%clk 0:00:11.7]} 48. gxf5+ {[%clk 0:00:06.7]} 48... gxf5 {[%clk 0:00:12.1]}
49. a6 {[%clk 0:00:07.2]} 49... h5 {[%clk 0:00:11.7]} 50. Rb7 {[%clk 0:00:07.3]}
50... Ra8 {[%clk 0:00:11.5]} 51. a7 {[%clk 0:00:07.4]} 51... f4 {[%clk
0:00:12.1]} 52. Rb8 {[%clk 0:00:07.4]} 52... fxe3 {[%clk 0:00:11]} 53. fxe3
{[%clk 0:00:07.6]} 53... h4 {[%clk 0:00:10.7]} 54. Rxa8 {[%clk 0:00:07.5]} 54...
Kf5 {[%clk 0:00:10.7]} 55. Rh8 {[%clk 0:00:08]} 55... Kg6 {[%clk 0:00:11.6]} 56.
d8=Q {[%clk 0:00:07.6]} 56... Kf7 {[%clk 0:00:12.5]} 57. Qf6# {[%clk 0:00:07.3]}
1-0

[Event "Early-Titled-Tuesday-Blitz-September-12-2023"]
[Site "Chess.com"]
[Date "2023.09.12"]
[Round "10"]
[White "benny_aizenberg"]
[Black "hongnhung1234"]
[Result "0-1"]
[WhiteElo "2616"]
[BlackElo "2530"]
[TimeControl "180+1"]
[EndTime "9:56:39 PDT"]
[Termination "hongnhung1234 won by checkmate"]

1. g4 {[%clk 0:03:00.9]} 1... d5 {[%clk 0:02:57.9]} 2. g5 {[%clk 0:03:01.8]}
2... h6 {[%clk 0:02:56.8]} 3. g6 {[%clk 0:02:58]} 3... fxg6 {[%clk 0:02:56.3]}
4. d4 {[%clk 0:02:56.9]} 4... Nc6 {[%clk 0:02:47.3]} 5. Bh3 {[%clk 0:02:46.1]}
5... Bf5 {[%clk 0:02:36.6]} 6. c4 {[%clk 0:02:29.2]} 6... e6 {[%clk 0:02:28.7]}
7. Nc3 {[%clk 0:02:13.8]} 7... Nf6 {[%clk 0:02:22.3]} 8. Bf4 {[%clk 0:02:07.5]}
8... a6 {[%clk 0:02:16.8]} 9. e3 {[%clk 0:02:02.8]} 9... Bd6 {[%clk 0:02:10.6]}
10. Bxd6 {[%clk 0:01:51.5]} 10... Qxd6 {[%clk 0:02:11.5]} 11. cxd5 {[%clk
0:01:44.6]} 11... exd5 {[%clk 0:02:07.3]} 12. Qf3 {[%clk 0:01:38.3]} 12... Bxh3
{[%clk 0:02:02.4]} 13. Nxh3 {[%clk 0:01:35.6]} 13... g5 {[%clk 0:02:02.6]} 14.
Qf5 {[%clk 0:01:29.6]} 14... Ne7 {[%clk 0:01:53.1]} 15. Qc2 {[%clk 0:01:26.4]}
15... Qe6 {[%clk 0:01:44.2]} 16. Ng1 {[%clk 0:01:24.9]} 16... O-O {[%clk
0:01:37.7]} 17. h4 {[%clk 0:01:05.5]} 17... Ng4 {[%clk 0:01:33.2]} 18. Nd1
{[%clk 0:00:46.6]} 18... gxh4 {[%clk 0:01:22.7]} 19. Rxh4 {[%clk 0:00:44.4]}
19... Ng6 {[%clk 0:01:19.3]} 20. Rh5 {[%clk 0:00:39.1]} 20... Nf4 {[%clk
0:01:07.3]} 21. Re5 {[%clk 0:00:08.5]} 21... Nxe5 {[%clk 0:01:04.4]} 22. dxe5
{[%clk 0:00:09.1]} 22... Qxe5 {[%clk 0:01:04.3]} 23. Nf3 {[%clk 0:00:09.3]}
23... Ng2+ {[%clk 0:01:00.3]} 24. Ke2 {[%clk 0:00:09.1]} 24... Qh5 {[%clk
0:00:59.4]} 25. Qxc7 {[%clk 0:00:08.6]} 25... Qxf3+ {[%clk 0:00:59.3]} 26. Kd2
{[%clk 0:00:08.8]} 26... Rac8 {[%clk 0:00:58.5]} 27. Qxb7 {[%clk 0:00:09]} 27...
Nh4 {[%clk 0:00:53.8]} 28. Qxa6 {[%clk 0:00:08.3]} 28... d4 {[%clk 0:00:49.2]}
29. exd4 {[%clk 0:00:05.4]} 29... Rfd8 {[%clk 0:00:48.4]} 30. Qe6+ {[%clk
0:00:03.6]} 30... Kh8 {[%clk 0:00:48.1]} 31. Qe3 {[%clk 0:00:04.2]} 31... Qxe3+
{[%clk 0:00:44.2]} 32. fxe3 {[%clk 0:00:05.1]} 32... g5 {[%clk 0:00:43.6]} 33.
Nf2 {[%clk 0:00:04.2]} 33... Kg7 {[%clk 0:00:41.9]} 34. a4 {[%clk 0:00:03.1]}
34... Rf8 {[%clk 0:00:41.2]} 35. Ng4 {[%clk 0:00:02.7]} 35... h5 {[%clk
0:00:40.3]} 36. Ne5 {[%clk 0:00:03]} 36... Nf3+ {[%clk 0:00:40.7]} 37. Nxf3
{[%clk 0:00:02.3]} 37... Rxf3 {[%clk 0:00:41.6]} 38. a5 {[%clk 0:00:02.8]} 38...
Rf2+ {[%clk 0:00:39.5]} 39. Kd3 {[%clk 0:00:03.4]} 39... Rxb2 {[%clk 0:00:40.1]}
40. a6 {[%clk 0:00:04]} 40... Ra8 {[%clk 0:00:40.3]} 41. Ra5 {[%clk 0:00:03.7]}
41... Kg6 {[%clk 0:00:38.9]} 42. e4 {[%clk 0:00:04.2]} 42... Rb6 {[%clk
0:00:38.8]} 43. e5 {[%clk 0:00:04.5]} 43... Raxa6 {[%clk 0:00:38.8]} 44. Rc5
{[%clk 0:00:04.5]} 44... Rc6 {[%clk 0:00:38.6]} 45. Rb5 {[%clk 0:00:04.5]} 45...
Rcb6 {[%clk 0:00:35.9]} 46. Rc5 {[%clk 0:00:04.6]} 46... h4 {[%clk 0:00:35]} 47.
Ke4 {[%clk 0:00:04.3]} 47... h3 {[%clk 0:00:34]} 48. Rc3 {[%clk 0:00:04.3]}
48... g4 {[%clk 0:00:33.6]} 49. Kf4 {[%clk 0:00:04.6]} 49... Kh5 {[%clk
0:00:34.2]} 50. Rc8 {[%clk 0:00:03.4]} 50... h2 {[%clk 0:00:32.9]} 51. Rc1
{[%clk 0:00:03.2]} 51... Kh4 {[%clk 0:00:31]} 52. d5 {[%clk 0:00:02.6]} 52... g3
{[%clk 0:00:30.4]} 53. e6 {[%clk 0:00:03.1]} 53... g2 {[%clk 0:00:30]} 54. e7
{[%clk 0:00:03.3]} 54... Ra8 {[%clk 0:00:28.7]} 55. Rc2 {[%clk 0:00:02.3]} 55...
h1=Q {[%clk 0:00:27.3]} 56. Re2 {[%clk 0:00:01.7]} 56... Qf1+ {[%clk 0:00:27.2]}
57. Ke3 {[%clk 0:00:02]} 57... Rb3+ {[%clk 0:00:26.4]} 58. Kd2 {[%clk
0:00:01.9]} 58... Ra2# {[%clk 0:00:26.4]} 0-1

[Event "Early-Titled-Tuesday-Blitz-September-12-2023"]
[Site "Chess.com"]
[Date "2023.09.12"]
[Round "10"]
[White "Vuk2000"]
[Black "Vesper2018"]
[Result "1-0"]
[WhiteElo "2765"]
[BlackElo "2610"]
[TimeControl "180+1"]
[EndTime "9:56:40 PDT"]
[Termination "Vuk2000 won by resignation"]

1. d4 {[%clk 0:03:00.9]} 1... Nf6 {[%clk 0:02:59.7]} 2. Bg5 {[%clk 0:03:01.3]}
2... d5 {[%clk 0:02:58.2]} 3. Bxf6 {[%clk 0:03:01.3]} 3... exf6 {[%clk
0:02:57.4]} 4. e3 {[%clk 0:03:01.7]} 4... Bd6 {[%clk 0:02:56.8]} 5. c4 {[%clk
0:03:01.8]} 5... c6 {[%clk 0:02:56.2]} 6. Nc3 {[%clk 0:02:59.8]} 6... dxc4
{[%clk 0:02:50.6]} 7. Bxc4 {[%clk 0:03:00.7]} 7... O-O {[%clk 0:02:50.8]} 8. Nf3
{[%clk 0:03:01]} 8... Re8 {[%clk 0:02:42.4]} 9. O-O {[%clk 0:03:00.9]} 9... Nd7
{[%clk 0:02:42.6]} 10. Rb1 {[%clk 0:03:00.8]} 10... a5 {[%clk 0:02:36.8]} 11. d5
{[%clk 0:02:47.6]} 11... Nb6 {[%clk 0:02:21.8]} 12. Bb3 {[%clk 0:02:46.7]} 12...
Bd7 {[%clk 0:02:11]} 13. dxc6 {[%clk 0:02:42]} 13... Bxc6 {[%clk 0:02:11.1]} 14.
Nd4 {[%clk 0:02:42.6]} 14... Be5 {[%clk 0:01:51.1]} 15. Nxc6 {[%clk 0:02:18.1]}
15... bxc6 {[%clk 0:01:50.9]} 16. Qc2 {[%clk 0:02:11.5]} 16... Qe7 {[%clk
0:01:40.3]} 17. Ne2 {[%clk 0:01:56.4]} 17... Rac8 {[%clk 0:01:36.5]} 18. Rfd1
{[%clk 0:01:37.8]} 18... g6 {[%clk 0:01:32.4]} 19. g3 {[%clk 0:01:30.6]} 19...
f5 {[%clk 0:01:32.1]} 20. Rd3 {[%clk 0:01:14.3]} 20... c5 {[%clk 0:01:30.4]} 21.
Bc4 {[%clk 0:01:13.6]} 21... Nxc4 {[%clk 0:01:24.7]} 22. Qxc4 {[%clk 0:01:12.8]}
22... Rb8 {[%clk 0:01:25.3]} 23. Rd5 {[%clk 0:00:55.4]} 23... Rec8 {[%clk
0:01:14.8]} 24. b3 {[%clk 0:00:42.8]} 24... Rc7 {[%clk 0:00:59.7]} 25. Rc1
{[%clk 0:00:39]} 25... Rb4 {[%clk 0:00:47.2]} 26. Qa6 {[%clk 0:00:38.9]} 26...
a4 {[%clk 0:00:29.8]} 27. bxa4 {[%clk 0:00:32.6]} 27... Kg7 {[%clk 0:00:27.7]}
28. Qa5 {[%clk 0:00:22.4]} 28... Bd6 {[%clk 0:00:21.4]} 29. Qa6 {[%clk
0:00:15.5]} 29... Be5 {[%clk 0:00:21.1]} 30. a3 {[%clk 0:00:10.9]} 30... Rb2
{[%clk 0:00:16.5]} 31. Nf4 {[%clk 0:00:06.9]} 31... c4 {[%clk 0:00:08.9]} 32.
Rxc4 {[%clk 0:00:03.2]} 32... Bf6 {[%clk 0:00:07.2]} 33. Rxc7 {[%clk 0:00:02.7]}
33... Qxc7 {[%clk 0:00:07.5]} 34. Qd3 {[%clk 0:00:01.4]} 34... Qc1+ {[%clk
0:00:06.6]} 35. Qd1 {[%clk 0:00:01.3]} 35... Qc3 {[%clk 0:00:04.9]} 36. Rd3
{[%clk 0:00:01.5]} 36... Qc5 {[%clk 0:00:04]} 37. Kg2 {[%clk 0:00:02.1]} 37...
Ra2 {[%clk 0:00:03.6]} 38. Nd5 {[%clk 0:00:02.6]} 38... Be5 {[%clk 0:00:03.7]}
39. h3 {[%clk 0:00:02.1]} 39... g5 {[%clk 0:00:03.8]} 40. h4 {[%clk 0:00:02.2]}
40... gxh4 {[%clk 0:00:03.7]} 41. gxh4 {[%clk 0:00:03.1]} 41... f4 {[%clk
0:00:04]} 42. Qg4+ {[%clk 0:00:02.6]} 42... Kf8 {[%clk 0:00:03.9]} 43. Nxf4
{[%clk 0:00:03.3]} 43... Bxf4 {[%clk 0:00:03.6]} 44. Qxf4 {[%clk 0:00:04.2]}
44... Qc6+ {[%clk 0:00:03.8]} 45. Kh2 {[%clk 0:00:04.6]} 45... Qe6 {[%clk
0:00:03.6]} 46. Rd8+ {[%clk 0:00:04.6]} 46... Ke7 {[%clk 0:00:03.1]} 47. Qc7+
{[%clk 0:00:04.8]} 47... Kf6 {[%clk 0:00:03.2]} 48. Rd6 {[%clk 0:00:05.5]} 48...
Rxf2+ {[%clk 0:00:03.1]} 49. Kg3 {[%clk 0:00:06]} 49... Re2 {[%clk 0:00:03.3]}
50. Rxe6+ {[%clk 0:00:06.3]} 50... fxe6 {[%clk 0:00:03.9]} 51. Qf4+ {[%clk
0:00:06.8]} 51... Ke7 {[%clk 0:00:04.2]} 52. Qb4+ {[%clk 0:00:06.9]} 52... Kf6
{[%clk 0:00:04.5]} 53. Qf4+ {[%clk 0:00:06.9]} 53... Ke7 {[%clk 0:00:04.9]} 54.
Kf3 {[%clk 0:00:07.5]} 54... Re1 {[%clk 0:00:04.8]} 55. Qb4+ {[%clk 0:00:08.4]}
55... Kf6 {[%clk 0:00:05]} 56. Qxe1 {[%clk 0:00:09.3]} 1-0